bitfinex/quotes_BTCUSD_20250703
["timestamp","ask_amount","ask_price","bid_price","bid_amount"]
[1751521916472,0.0002,109500.0,109490.0,1.06680537]
[1751521916679,0.0002,109500.0,109490.0,1.06680545]
[1751521916886,0.0002,109500.0,109490.0,1.07593845]
[1751521917113,0.0002,109500.0,109490.0,1.38562541]
[1751521917327,0.0002,109500.0,109490.0,1.48751832]
[1751521917562,0.0002,109500.0,109490.0,1.47838549]
[1751521917779,0.0002,109500.0,109490.0,0.86814449]
[1751521917982,0.0002,109500.0,109490.0,1.46925257]
[1751521918429,0.0002,109500.0,109490.0,1.47838549]
[1751521918651,0.0002,109500.0,109490.0,1.48751832]
[1751521919197,0.0002,109500.0,109490.0,1.47838507]
[1751521920126,0.0002,109500.0,109490.0,1.47830507]
[1751521920341,0.0002,109500.0,109490.0,1.46917224]
[1751521920549,0.0002,109500.0,109490.0,1.46003932]
[1751521920762,0.0002,109500.0,109490.0,1.45090632]
[1751521920973,0.0002,109500.0,109490.0,0.84066516]
[1751521921238,0.0002,109500.0,109490.0,1.03976363]
[1751521921444,0.0002,109500.0,109490.0,1.05802988]
[1751521922072,0.0002,109500.0,109490.0,1.35858392]
[1751521922284,0.0002,109500.0,109490.0,1.05802988]
[1751521922788,0.0002,109500.0,109490.0,1.0488968]
[1751521923547,0.0002,109500.0,109490.0,1.24982796]
[1751521923771,0.0002,109500.0,109490.0,1.24069496]
[1751521924555,0.0002,109500.0,109490.0,1.23156188]
[1751521924965,0.0002,109500.0,109490.0,1.06721563]
[1751521925587,0.0002,109500.0,109490.0,1.0763488]
[1751521925818,0.0002,109500.0,109490.0,1.06721563]
[1751521926024,0.0002,109500.0,109490.0,1.05808238]
[1751521926446,0.0002,109500.0,109490.0,0.76666159]
[1751521926665,0.0002,109500.0,109490.0,0.75752834]
[1751521927103,0.0002,109500.0,109490.0,1.05808238]
[1751521930323,0.0002,109500.0,109490.0,0.56848834]
[1751521930542,0.0002,109500.0,109490.0,0.98596612]
[1751521931639,0.0002,109500.0,109490.0,1.00427612]
[1751521931847,0.0002,109500.0,109490.0,0.98596612]
[1751521939415,0.0002,109500.0,109490.0,0.68541208]
[1751521939630,0.0002,109500.0,109490.0,0.98596612]
[1751521941360,0.0002,109500.0,109490.0,0.68541208]
[1751521941573,0.0002,109500.0,109490.0,0.98596612]
[1751521942006,0.0002,109500.0,109490.0,1.28652016]
[1751521942426,0.0002,109500.0,109490.0,0.98596612]
[1751521945116,0.0002,109500.0,109490.0,0.99509937]
[1751521945496,0.0002,109500.0,109490.0,0.98596612]
[1751521945696,0.0002,109500.0,109490.0,1.28652016]
[1751521946499,0.0002,109500.0,109490.0,1.29565341]
[1751521946699,0.0002,109500.0,109490.0,1.28652016]
[1751521946911,0.0002,109500.0,109490.0,1.30478658]
[1751521947528,0.0002,109500.0,109490.0,1.29565341]
[1751521947739,0.0002,109500.0,109490.0,1.55952783]
[1751521948019,0.0002,109500.0,109490.0,1.56866083]
[1751521948544,0.0002,109500.0,109490.0,1.57779375]
[1751521948757,0.0002,109500.0,109490.0,1.56866083]
[1751521949592,0.0002,109500.0,109490.0,1.57779375]
[1751521949770,0.0002,109500.0,109490.0,1.56866083]
[1751521950526,0.0002,109500.0,109490.0,1.55952783]
[1751521951415,0.0002,109500.0,109490.0,1.56866083]
[1751521952910,0.0002,109500.0,109490.0,1.55952783]
[1751521952911,0.0002,109500.0,109490.0,1.55039475]
[1751521953197,0.0002,109500.0,109490.0,1.55952792]
[1751521954183,0.0002,109500.0,109490.0,1.568661]
[1751521954878,0.0002,109500.0,109490.0,1.55952792]
[1751521956513,0.0002,109500.0,109490.0,1.36772967]
[1751521957930,0.0002,109500.0,109490.0,1.37686284]
[1751521958382,0.0002,109500.0,109490.0,1.59233436]
[1751521958568,0.0002,109500.0,109490.0,1.60146711]
[1751521960522,0.0002,109500.0,109490.0,1.59233444]
[1751521960778,0.0002,109500.0,109490.0,1.60146711]
[1751521960965,0.0002,109500.0,109490.0,1.59233444]
[1751521962014,0.0002,109500.0,109490.0,1.60146711]
[1751521962388,0.0002,109500.0,109490.0,1.59233444]
[1751521962522,0.0002,109500.0,109490.0,1.59233452]
[1751521962913,0.0002,109500.0,109490.0,1.60146727]
[1751521963126,0.0002,109500.0,109490.0,1.59233452]
[1751521964871,0.0002,109500.0,109490.0,1.52025826]
[1751521965596,0.0002,109500.0,109490.0,1.58365475]
[1751521966029,0.0002,109500.0,109490.0,1.59278758]
[1751521966472,0.0002,109500.0,109490.0,1.58365475]
[1751521967621,0.0002,109500.0,109490.0,1.57452183]
[1751521967880,0.0002,109500.0,109490.0,1.59278775]
[1751521968101,0.0002,109500.0,109490.0,1.60192058]
[1751521968319,0.0002,109500.0,109490.0,1.59278775]
[1751521968980,0.0002,109500.0,109490.0,1.57452183]
[1751521969213,0.0002,109500.0,109490.0,0.98254683]
[1751521969457,0.01191157,109510.0,109500.0,0.94110808]
[1751521969671,0.01191157,109510.0,109500.0,1.22061279]
[1751521970268,0.01191157,109510.0,109500.0,1.23761249]
[1751521970484,0.01191157,109510.0,109500.0,0.44766441]
[1751521970692,0.01191157,109510.0,109500.0,0.93705845]
[1751521970908,0.04221157,109510.0,109500.0,0.93905845]
[1751521971751,0.04221157,109510.0,109500.0,1.23961249]
[1751521972333,0.04221157,109510.0,109500.0,0.93905845]
[1751521972921,0.02701157,109510.0,109500.0,1.23961249]
[1751521973918,0.01191157,109510.0,109500.0,1.23961249]
[1751521974301,0.01191157,109510.0,109500.0,1.20334661]
[1751521974957,0.01191157,109510.0,109500.0,1.20330661]
[1751521975692,0.01191157,109510.0,109500.0,1.20330735]
[1751521981265,0.01191157,109510.0,109500.0,1.18630691]
[1751521983692,0.01191157,109510.0,109500.0,1.18750691]
[1751521984115,0.01191157,109510.0,109500.0,1.20450902]
[1751521984740,0.01191157,109510.0,109500.0,1.18750691]
[1751521985947,0.01191157,109510.0,109500.0,1.20450906]
[1751521986147,0.01191157,109510.0,109500.0,1.23196006]
[1751521986559,0.01191157,109510.0,109500.0,1.21495791]
[1751521987538,0.01191157,109510.0,109500.0,1.24735791]
[1751521988387,0.01191157,109510.0,109500.0,1.26436115]
[1751521991007,0.01191157,109510.0,109500.0,1.24735791]
[1751521991161,0.01191157,109510.0,109500.0,1.2643586]
[1751521995302,0.01191157,109510.0,109500.0,1.55803183]
[1751521995415,0.01191157,109510.0,109500.0,1.3662511]
[1751521995620,0.01191157,109510.0,109500.0,1.37538343]
[1751521996263,0.01191157,109510.0,109500.0,1.37538137]
[1751521997263,0.01191157,109510.0,109500.0,1.38451362]
[1751521997489,0.01191157,109510.0,109500.0,1.37538137]
[1751521998527,0.01191157,109510.0,109500.0,1.36624904]
[1751521998975,0.01191157,109510.0,109500.0,1.37538137]
[1751521999571,0.01191157,109510.0,109500.0,1.36624662]
[1751521999906,0.01191157,109510.0,109500.0,0.75600612]
[1751522000111,0.01191157,109510.0,109500.0,1.3571142]
[1751522002973,0.01191157,109510.0,109500.0,0.75600612]
[1751522003196,0.01191157,109510.0,109500.0,1.3571142]
[1751522006011,0.01191157,109510.0,109500.0,1.35711396]
[1751522006849,0.01191157,109510.0,109500.0,1.16831396]
[1751522007055,0.01191157,109510.0,109500.0,1.35695396]
[1751522008250,0.01191157,109510.0,109500.0,1.33995799]
[1751522008460,0.01191157,109510.0,109500.0,1.35695471]
[1751522009388,0.01191157,109510.0,109500.0,1.35695515]
[1751522012520,0.01191157,109510.0,109500.0,1.35695671]
[1751522013062,0.01191157,109510.0,109500.0,1.37149756]
[1751522013276,0.01191157,109510.0,109500.0,1.89109507]
[1751522013484,0.01191157,109510.0,109500.0,1.82769783]
[1751522013690,0.01191157,109510.0,109500.0,1.90022698]
[1751522014122,0.01191157,109510.0,109500.0,1.89823376]
[1751522014541,0.01191157,109510.0,109500.0,1.90123376]
[1751522014948,0.01191157,109510.0,109500.0,1.89823385]
[1751522015370,0.01191157,109510.0,109500.0,1.89823393]
[1751522015577,0.01191157,109510.0,109500.0,1.90936593]
[1751522015781,0.01191157,109510.0,109500.0,1.91849784]
[1751522015988,0.01191157,109510.0,109500.0,1.90736593]
[1751522016208,0.01191157,109510.0,109500.0,1.91036593]
[1751522017032,0.01191157,109510.0,109500.0,1.91436593]
[1751522017675,0.01191157,109510.0,109500.0,1.90523393]
[1751522018143,0.01191157,109510.0,109500.0,1.89610185]
[1751522018578,0.01191157,109510.0,109500.0,1.90523393]
[1751522018773,0.01191157,109510.0,109500.0,1.91436593]
[1751522019020,0.01191157,109510.0,109500.0,1.90523393]
[1751522019192,0.01191157,109510.0,109500.0,1.90563393]
[1751522019549,0.01191157,109510.0,109500.0,0.99483973]
[1751522019755,0.01191157,109510.0,109500.0,1.58681565]
[1751522019983,0.01191157,109510.0,109500.0,1.57756323]
[1751522020283,0.01191157,109510.0,109500.0,1.52329849]
[1751522020900,0.01191157,109510.0,109500.0,1.53243065]
[1751522021677,0.01191157,109510.0,109500.0,1.50503391]
[1751522021890,0.01191157,109510.0,109500.0,1.51416624]
[1751522022087,0.01191157,109510.0,109500.0,1.52329849]
[1751522022294,0.01191157,109510.0,109500.0,1.51416624]
[1751522022700,0.01191157,109510.0,109500.0,1.52329849]
[1751522022828,0.01191157,109510.0,109500.0,1.51416624]
[1751522023035,0.01191157,109510.0,109500.0,1.52329849]
[1751522023241,0.01191157,109510.0,109500.0,1.33477849]
[1751522023604,0.01191157,109510.0,109500.0,1.53243065]
[1751522024006,0.01191157,109510.0,109500.0,1.51416624]
[1751522024628,0.01191157,109510.0,109500.0,1.52329849]
[1751522025465,0.01191157,109510.0,109500.0,1.53243065]
[1751522026078,0.01191157,109510.0,109500.0,1.83298469]
[1751522026907,0.01191157,109510.0,109500.0,1.82385253]
[1751522028715,0.01191157,109510.0,109500.0,1.81472028]
[1751522028924,0.01191157,109510.0,109500.0,1.80558795]
[1751522029135,0.01191157,109510.0,109500.0,1.52329866]
[1751522029291,0.01191157,109510.0,109500.0,1.53243082]
[1751522029672,0.01191157,109510.0,109500.0,1.53243091]
[1751522030446,0.01191157,109510.0,109500.0,1.52329866]
[1751522030974,0.01191157,109510.0,109500.0,1.53243091]
[1751522031387,0.01191157,109510.0,109500.0,1.52329866]
[1751522032142,0.01191157,109510.0,109500.0,1.52459316]
[1751522032347,0.01191157,109510.0,109500.0,1.50629316]
[1751522033166,0.01191157,109510.0,109500.0,1.49716083]
[1751522033641,0.01191157,109510.0,109500.0,1.51416291]
[1751522034069,0.01191157,109510.0,109500.0,1.52329524]
[1751522034961,0.01191157,109510.0,109500.0,1.53242749]
[1751522035212,0.01191157,109510.0,109500.0,1.52321524]
[1751522036849,0.01191157,109510.0,109500.0,1.53234749]
[1751522037325,0.01191157,109510.0,109500.0,1.60487681]
[1751522037964,0.01191157,109510.0,109500.0,1.59574456]
[1751522038165,0.01191157,109510.0,109500.0,1.52321524]
[1751522038390,0.01191157,109510.0,109500.0,1.59574456]
[1751522038582,0.01191157,109510.0,109500.0,1.60487681]
[1751522038785,0.01191157,109510.0,109500.0,1.8962986]
[1751522039004,0.01191157,109510.0,109500.0,1.88716627]
[1751522039213,0.01191157,109510.0,109500.0,1.8962986]
[1751522039416,0.01191157,109510.0,109500.0,1.82376928]
[1751522039624,0.01191157,109510.0,109500.0,1.52321524]
[1751522039835,0.01191157,109510.0,109500.0,1.60487681]
[1751522040036,0.01191157,109510.0,109500.0,1.59574456]
[1751522040260,0.01191157,109510.0,109500.0,1.61400881]
[1751522040503,0.01191157,109510.0,109500.0,1.61400889]
[1751522040708,0.01191157,109510.0,109500.0,1.90543587]
[1751522041153,0.01191157,109510.0,109500.0,1.91456803]
[1751522042429,0.01191157,109510.0,109500.0,1.92370011]
[1751522042668,0.01191157,109510.0,109500.0,1.89756093]
[1751522042883,0.01191157,109510.0,109500.0,1.91457025]
[1751522043087,0.01191157,109510.0,109500.0,1.92370233]
[1751522043356,0.01191157,109510.0,109500.0,1.91456991]
[1751522043560,0.01191157,109510.0,109500.0,1.92370174]
[1751522047479,0.01191157,109510.0,109500.0,1.90669242]
[1751522051761,0.01191157,109510.0,109500.0,1.0050303]
[1751522051955,0.01191157,109510.0,109500.0,1.38117006]
[1751522052182,0.01191157,109510.0,109500.0,1.57125447]
[1751522052392,0.01191157,109510.0,109500.0,1.58038655]
[1751522052585,0.01191157,109510.0,109500.0,1.58951855]
[1751522052808,0.01191157,109510.0,109500.0,1.60581813]
[1751522052980,0.01191157,109510.0,109500.0,1.90637217]
[1751522053177,0.01191157,109510.0,109500.0,1.90637175]
[1751522053381,0.01191157,109510.0,109500.0,1.89723992]
[1751522053583,0.01191157,109510.0,109500.0,1.70891992]
[1751522053846,0.01191157,109510.0,109500.0,1.89723992]
[1751522054037,0.01191157,109510.0,109500.0,1.60581771]
[1751522054300,0.01191157,109510.0,109500.0,1.57842197]
[1751522054525,0.01191157,109510.0,109500.0,1.58755397]
[1751522054731,0.01191157,109510.0,109500.0,1.5966858]
[1751522054938,0.01191157,109510.0,109500.0,1.89723984]
[1751522065736,0.01191157,109510.0,109500.0,1.82471052]
[1751522065940,0.01191157,109510.0,109500.0,1.89749076]
[1751522066152,0.01191157,109510.0,109500.0,1.82471052]
[1751522072025,0.01191157,109510.0,109500.0,1.91537217]
[1751522077870,0.01191157,109510.0,109500.0,1.01371005]
[1751522078085,0.01191157,109510.0,109500.0,1.91537217]
[1751522084374,0.01191157,109510.0,109500.0,1.93243732]
[1751522090998,0.01191157,109510.0,109500.0,2.88409944]
[1751522091203,0.002,109530.0,109520.0,0.53174562]
[1751522091458,0.002,109530.0,109520.0,1.80408391]
[1751522091761,0.002,109530.0,109520.0,1.81321441]
[1751522091928,0.002,109530.0,109520.0,1.84065841]
[1751522092139,0.002,109530.0,109520.0,1.84065849]
[1751522092341,0.002,109530.0,109520.0,1.54010453]
[1751522092506,0.002,109530.0,109520.0,1.55462394]
[1751522092709,0.002,109530.0,109520.0,1.56375444]
[1751522092920,0.002,109530.0,109520.0,1.54825444]
[1751522093117,0.002,109530.0,109520.0,1.55738485]
[1751522093314,0.002,109530.0,109520.0,1.53199336]
[1751522093559,0.002,109530.0,109520.0,1.54112386]
[1751522093770,0.00246873,109530.0,109520.0,1.54112386]
[1751522093976,0.00246873,109530.0,109520.0,1.55025427]
[1751522094391,0.00246873,109530.0,109520.0,1.5593846]
[1751522094595,0.00246873,109530.0,109520.0,1.55025427]
[1751522094797,0.00246873,109530.0,109520.0,1.5593846]
[1751522094991,0.00246873,109530.0,109520.0,1.87653864]
[1751522095194,0.00246873,109530.0,109520.0,1.87651003]
[1751522095398,0.00246873,109530.0,109520.0,1.88564019]
[1751522095658,0.00246873,109530.0,109520.0,1.88564028]
[1751522095835,0.00246873,109530.0,109520.0,1.88563978]
[1751522097824,0.00246873,109530.0,109520.0,1.85819578]
[1751522098026,0.00246873,109530.0,109520.0,1.87469578]
[1751522098453,0.00246873,109530.0,109520.0,1.86556562]
[1751522098912,0.00246873,109530.0,109520.0,1.87469578]
[1751522099227,0.00246873,109530.0,109520.0,1.84906562]
[1751522099630,0.00246873,109530.0,109520.0,1.83993537]
[1751522099851,0.00246873,109530.0,109520.0,1.84906553]
[1751522102718,0.00246873,109530.0,109520.0,1.83993537]
[1751522102887,0.00246873,109530.0,109520.0,1.84906562]
[1751522103049,0.00246873,109530.0,109520.0,1.85819578]
[1751522103260,0.00266873,109530.0,109520.0,1.84906562]
[1751522103684,0.00266873,109530.0,109520.0,1.85819578]
[1751522104930,0.00266873,109530.0,109520.0,1.87319578]
[1751522105398,0.00266873,109530.0,109520.0,1.86406562]
[1751522105604,0.00266873,109530.0,109520.0,1.87319578]
[1751522106568,0.00266873,109530.0,109520.0,1.88979578]
[1751522106780,0.00266873,109530.0,109520.0,1.546851]
[1751522107005,0.00266873,109530.0,109520.0,1.55598133]
[1751522107223,0.00266873,109530.0,109520.0,1.56511158]
[1751522107647,0.00266873,109530.0,109520.0,1.55598133]
[1751522107864,0.00266873,109530.0,109520.0,1.54851158]
[1751522108753,0.00266873,109530.0,109520.0,1.57344174]
[1751522111090,0.00266873,109530.0,109520.0,1.56431158]
[1751522111305,0.00266873,109530.0,109520.0,1.57344174]
[1751522111747,0.00266873,109530.0,109520.0,1.55518133]
[1751522111962,0.00266873,109530.0,109520.0,1.56430087]
[1751522112174,0.00266873,109530.0,109520.0,1.86485491]
[1751522112390,0.00266873,109530.0,109520.0,1.83992475]
[1751522112631,0.00266873,109530.0,109520.0,1.54850087]
[1751522113055,0.00266873,109530.0,109520.0,1.86545491]
[1751522113694,0.00266873,109530.0,109520.0,1.865455]
[1751522113907,0.00266873,109530.0,109520.0,1.87458516]
[1751522114590,0.00266873,109530.0,109520.0,1.88998516]
[1751522116573,0.00266873,109530.0,109520.0,1.87458516]
[1751522118400,0.00266873,109530.0,109520.0,1.865455]
[1751522118588,0.00266873,109530.0,109520.0,1.86545508]
[1751522119076,0.00266873,109530.0,109520.0,1.87458474]
[1751522119804,0.00266873,109530.0,109520.0,1.86545458]
[1751522120036,0.00266873,109530.0,109520.0,1.88105458]
[1751522120248,0.00266873,109530.0,109520.0,1.89018474]
[1751522121351,0.00266873,109530.0,109520.0,1.87401207]
[1751522122274,0.00266873,109530.0,109520.0,1.86488191]
[1751522122830,0.00266873,109530.0,109520.0,1.87401207]
[1751522124322,0.00266873,109530.0,109520.0,1.86488191]
[1751522124532,0.00266873,109530.0,109520.0,1.85575166]
[1751522124769,0.00266873,109530.0,109520.0,1.86488182]
[1751522126669,0.00266873,109530.0,109520.0,1.86488191]
[1751522127084,0.00266873,109530.0,109520.0,1.87401207]
[1751522128120,0.00266873,109530.0,109520.0,1.67680191]
[1751522128327,0.00266873,109530.0,109520.0,1.87373207]
[1751522129561,0.00266873,109530.0,109520.0,1.86460191]
[1751522129752,0.00266873,109530.0,109520.0,1.87373207]
[1751522130450,0.00266873,109530.0,109520.0,1.86460191]
[1751522130658,0.00266873,109530.0,109520.0,1.87373207]
[1751522131493,0.00266873,109530.0,109520.0,1.86460191]
[1751522131696,0.00266873,109530.0,109520.0,1.87373207]
[1751522136579,0.00266873,109530.0,109520.0,0.97206995]
[1751522136793,0.00266873,109530.0,109520.0,1.87373207]
[1751522141336,0.00266873,109530.0,109520.0,1.85667924]
[1751522141547,0.00266873,109530.0,109520.0,1.87373584]
[1751522147095,0.00266873,109530.0,109520.0,1.87373578]
[1751522147786,0.00146873,109530.0,109520.0,1.87373578]
[1751522152398,0.00146873,109530.0,109520.0,1.87373585]
[1751522161055,0.00146873,109530.0,109520.0,1.87373391]
[1751522161886,0.03406873,109530.0,109520.0,0.09222561]
[1751522162188,0.0675468,109530.0,109520.0,0.07405102]
[1751522162397,0.0675468,109530.0,109520.0,0.54405016]
[1751522162596,0.03406873,109530.0,109520.0,0.57132177]
[1751522163163,0.03406873,109530.0,109520.0,0.56932177]
[1751522163386,0.03406873,109530.0,109520.0,0.86987581]
[1751522163593,0.03506873,109530.0,109520.0,0.86987581]
[1751522164066,0.03506873,109530.0,109520.0,0.26876773]
[1751522164292,0.03606873,109530.0,109520.0,0.86987581]
[1751522164748,0.03606873,109530.0,109520.0,0.85282114]
[1751522167372,0.03606873,109530.0,109520.0,0.81641969]
[1751522167972,0.03606873,109530.0,109520.0,0.21531161]
[1751522168186,0.03606873,109530.0,109520.0,0.81641969]
[1751522168408,0.03606873,109530.0,109520.0,0.51586565]
[1751522169018,0.03606873,109530.0,109520.0,0.81641969]
[1751522173076,0.03606873,109530.0,109520.0,0.51586565]
[1751522176708,0.03606873,109530.0,109520.0,0.81641969]
[1751522177733,0.04519789,109530.0,109520.0,0.21531161]
[1751522177938,0.04519789,109530.0,109520.0,0.51586565]
[1751522178160,0.03606873,109530.0,109520.0,0.21531161]
[1751522178368,0.03606873,109530.0,109520.0,0.81641969]
[1751522180870,0.00346873,109530.0,109520.0,0.81641969]
[1751522184893,0.00346873,109530.0,109520.0,0.78910808]
[1751522185097,0.00346873,109530.0,109520.0,0.81634314]
[1751522185294,0.00346873,109530.0,109520.0,0.85274459]
[1751522186181,0.00346873,109530.0,109520.0,0.5157891]
[1751522186528,0.00346873,109530.0,109520.0,0.55219055]
[1751522186889,0.00346873,109530.0,109520.0,0.55219945]
[1751522187400,0.00346873,109530.0,109520.0,0.25164541]
[1751522187608,0.00346873,109530.0,109520.0,0.55219945]
[1751522187835,0.00346873,109530.0,109520.0,0.88435349]
[1751522191429,0.00346873,109530.0,109520.0,0.91170588]
[1751522191846,0.00346873,109530.0,109520.0,0.3105978]
[1751522192048,0.00346873,109530.0,109520.0,0.91170588]
[1751522194396,0.00346873,109530.0,109520.0,0.89640588]
[1751522196678,0.00346873,109530.0,109520.0,0.2952978]
[1751522196877,0.00346873,109530.0,109520.0,0.89640588]
[1751522198558,0.00346873,109530.0,109520.0,0.91260588]
[1751522204274,0.00346873,109530.0,109520.0,0.89640588]
[1751522208690,0.00346873,109530.0,109520.0,0.91230588]
[1751522212363,0.00346873,109530.0,109520.0,0.87590443]
[1751522213426,0.00346873,109530.0,109520.0,0.88503518]
[1751522213843,0.00346873,109530.0,109520.0,0.87590443]
[1751522214068,0.00346873,109530.0,109520.0,0.27479635]
[1751522214287,0.00346873,109530.0,109520.0,0.87590443]
[1751522214498,0.00346873,109530.0,109520.0,0.88503518]
[1751522214745,0.00246873,109530.0,109520.0,0.88503518]
[1751522214992,0.00346873,109530.0,109520.0,0.88503518]
[1751522215206,0.00346873,109530.0,109520.0,0.87590443]
[1751522215421,0.00246873,109530.0,109520.0,0.88503518]
[1751522215600,0.00246873,109530.0,109520.0,1.42691138]
[1751522215828,0.00146873,109530.0,109520.0,1.48333585]
[1751522216084,0.00146873,109530.0,109520.0,1.48333535]
[1751522216298,0.00146873,109530.0,109520.0,1.47420469]
[1751522216504,0.00146873,109530.0,109520.0,1.45594411]
[1751522217524,0.00146873,109530.0,109520.0,1.46507486]
[1751522218147,0.00146873,109530.0,109520.0,1.45594445]
[1751522218335,0.00146873,109530.0,109520.0,1.51960171]
[1751522218745,0.00146873,109530.0,109520.0,1.51047121]
[1751522219058,0.00146873,109530.0,109520.0,1.51960171]
[1751522219498,0.00146873,109530.0,109520.0,1.52873212]
[1751522219702,0.00146873,109530.0,109520.0,1.51960171]
[1751522219903,0.00146873,109530.0,109520.0,1.52873212]
[1751522220330,0.00146873,109530.0,109520.0,1.51960171]
[1751522220544,0.00146873,109530.0,109520.0,1.5378622]
[1751522220757,0.00146873,109530.0,109520.0,1.52873204]
[1751522220938,0.00146873,109530.0,109520.0,1.52873212]
[1751522221171,0.00146873,109530.0,109520.0,1.51960171]
[1751522221377,0.00146873,109530.0,109520.0,1.53786245]
[1751522221581,0.00146873,109530.0,109520.0,1.52873212]
[1751522221991,0.00146873,109530.0,109520.0,1.32287121]
[1751522222217,0.00146873,109530.0,109520.0,1.52861187]
[1751522222434,0.00146873,109530.0,109520.0,1.51948171]
[1751522222889,0.00146873,109530.0,109520.0,1.51035121]
[1751522223095,0.00146873,109530.0,109520.0,0.90924313]
[1751522223310,0.00146873,109530.0,109520.0,1.51035121]
[1751522223526,0.00146873,109530.0,109520.0,1.51035129]
[1751522223740,0.00146873,109530.0,109520.0,1.51948187]
[1751522224795,0.00146873,109530.0,109520.0,1.51035129]
[1751522225033,0.00146873,109530.0,109520.0,1.51948187]
[1751522225239,0.00146873,109530.0,109520.0,1.52861237]
[1751522225447,0.00146873,109530.0,109520.0,1.51948187]
[1751522226095,0.00146873,109530.0,109520.0,1.51035129]
[1751522226331,0.00146873,109530.0,109520.0,1.51948187]
[1751522227208,0.00146873,109530.0,109520.0,1.50122063]
[1751522227437,0.00146873,109530.0,109520.0,1.31860559]
[1751522227648,0.00146873,109530.0,109520.0,1.29353484]
[1751522227867,0.00146873,109530.0,109520.0,1.31003484]
[1751522230669,0.00146873,109530.0,109520.0,0.70892676]
[1751522230933,0.00146873,109530.0,109520.0,1.31003484]
[1751522231332,0.00146873,109530.0,109520.0,0.70892676]
[1751522231778,0.00146873,109530.0,109520.0,1.31003484]
[1751522234664,0.00146873,109530.0,109520.0,0.70892676]
[1751522234904,0.00146873,109530.0,109520.0,1.31003484]
[1751522235319,0.00146873,109530.0,109520.0,1.29353484]
[1751522236372,0.00146873,109530.0,109520.0,1.32819617]
[1751522236589,0.00146873,109530.0,109520.0,1.51081121]
[1751522236792,0.00146873,109530.0,109520.0,1.52907212]
[1751522236996,0.00146873,109530.0,109520.0,1.53820245]
[1751522237204,0.00146873,109530.0,109520.0,1.52907212]
[1751522237622,0.00146873,109530.0,109520.0,1.51994171]
[1751522238282,0.00146873,109530.0,109520.0,1.51994154]
[1751522238489,0.00146873,109530.0,109520.0,1.51081121]
[1751522238941,0.00146873,109530.0,109520.0,1.51994171]
[1751522240489,0.00146873,109530.0,109520.0,1.50168063]
[1751522240916,0.00146873,109530.0,109520.0,1.51081121]
[1751522241562,0.00146873,109530.0,109520.0,1.51994171]
[1751522241778,0.00146873,109530.0,109520.0,1.51081121]
[1751522241986,0.00146873,109530.0,109520.0,1.51994171]
[1751522242197,0.00146873,109530.0,109520.0,1.51081121]
[1751522243311,0.00146873,109530.0,109520.0,1.46541503]
[1751522243492,0.00146873,109530.0,109520.0,1.45628453]
[1751522244282,0.00146873,109530.0,109520.0,1.44715395]
[1751522244481,0.00146873,109530.0,109520.0,1.45628461]
[1751522245955,0.00146873,109530.0,109520.0,1.26453891]
[1751522246170,0.00146873,109530.0,109520.0,1.44715395]
[1751522246439,0.00146873,109530.0,109520.0,1.45628461]
[1751522246875,0.00146873,109530.0,109520.0,1.44715395]
[1751522248809,0.00146873,109530.0,109520.0,1.45628453]
[1751522249026,0.00146873,109530.0,109520.0,1.45628461]
[1751522249878,0.00146873,109530.0,109520.0,1.44715395]
[1751522250333,0.00146873,109530.0,109520.0,1.25540816]
[1751522250767,0.00146873,109530.0,109520.0,1.26453891]
[1751522252412,0.00146873,109530.0,109520.0,1.27366957]
[1751522252817,0.00146873,109530.0,109520.0,1.26453891]
[1751522254407,0.00146873,109530.0,109520.0,1.28158393]
[1751522254625,0.00146873,109530.0,109520.0,1.46419897]
[1751522255033,0.00146873,109530.0,109520.0,0.6713451]
[1751522255276,0.00146873,109530.0,109520.0,1.27245318]
[1751522255497,0.00146873,109530.0,109520.0,1.28158393]
[1751522255942,0.00146873,109530.0,109520.0,1.27245318]
[1751522256426,0.00146873,109530.0,109520.0,1.28158393]
[1751522256605,0.00146873,109530.0,109520.0,0.6713451]
[1751522256816,0.00146873,109530.0,109520.0,1.27245318]
[1751522257239,0.00146873,109530.0,109520.0,1.34522412]
[1751522260067,0.00146873,109530.0,109520.0,1.35435487]
[1751522260273,0.00146873,109530.0,109520.0,1.27245318]
[1751522260844,0.00146873,109530.0,109520.0,1.28158393]
[1751522261431,0.00146873,109530.0,109520.0,1.35435487]
[1751522261862,0.00146873,109530.0,109520.0,1.34522412]
[1751522265090,0.00146873,109530.0,109520.0,1.03232404]
[1751522265305,0.00146873,109530.0,109520.0,1.20146779]
[1751522265513,0.00146873,109530.0,109520.0,0.60035971]
[1751522265732,0.03276873,109530.0,109520.0,0.41299971]
[1751522265941,0.33332277,109530.0,109520.0,0.63673598]
[1751522266157,0.03276873,109530.0,109520.0,0.93729002]
[1751522266360,0.03276873,109530.0,109520.0,0.88273533]
[1751522266811,0.03276873,109530.0,109520.0,0.58218129]
[1751522267028,0.04189789,109530.0,109520.0,0.88273533]
[1751522267254,0.03276873,109530.0,109520.0,0.88273533]
[1751522267460,0.03276873,109530.0,109520.0,0.58217949]
[1751522267677,0.03276873,109530.0,109520.0,0.88273353]
[1751522268491,0.03276873,109530.0,109520.0,0.58217949]
[1751522268711,0.03276873,109530.0,109520.0,0.88273353]
[1751522268850,0.03276873,109530.0,109520.0,0.88272751]
[1751522270212,0.03276873,109530.0,109520.0,0.90997972]
[1751522271031,0.03276873,109530.0,109520.0,0.60942568]
[1751522271230,0.03276873,109530.0,109520.0,0.90997972]
[1751522273024,0.04189789,109530.0,109520.0,0.90997972]
[1751522273231,0.03276873,109530.0,109520.0,0.90997972]
[1751522274858,0.04189789,109530.0,109520.0,0.90993972]
[1751522275069,0.03276873,109530.0,109520.0,0.90993972]
[1751522277592,0.01736873,109530.0,109520.0,0.90993972]
[1751522278444,0.01736873,109530.0,109520.0,0.60938568]
[1751522278616,0.01736873,109530.0,109520.0,0.90993972]
[1751522279006,0.00146873,109530.0,109520.0,0.90993972]
[1751522280199,0.00146873,109530.0,109520.0,0.92583972]
[1751522280625,0.00146873,109530.0,109520.0,0.90993972]
[1751522280835,0.00146873,109530.0,109520.0,0.90992929]
[1751522287896,0.00146873,109530.0,109520.0,0.60937525]
[1751522288138,0.00146873,109530.0,109520.0,0.90992929]
[1751522290908,0.00146873,109530.0,109520.0,0.90988929]
[1751522291112,0.00146873,109530.0,109520.0,0.90989665]
[1751522292208,0.00146873,109530.0,109520.0,0.90889665]
[1751522292933,0.00246873,109530.0,109520.0,0.60834261]
[1751522293139,0.00246873,109530.0,109520.0,0.88164444]
[1751522293338,0.00346873,109530.0,109520.0,0.88164444]
[1751522294240,0.00346873,109530.0,109520.0,0.88165698]
[1751522295086,0.00346873,109530.0,109520.0,0.58110294]
[1751522295294,0.00346873,109530.0,109520.0,0.93621167]
[1751522297068,0.00346873,109530.0,109520.0,0.63565763]
[1751522297269,0.00346873,109530.0,109520.0,0.93621167]
[1751522299098,0.00346873,109530.0,109520.0,0.63565763]
[1751522299539,0.00346873,109530.0,109520.0,0.95231167]
[1751522304344,0.00346873,109530.0,109520.0,1.25286571]
[1751522305611,0.00346873,109530.0,109520.0,0.95231167]